fUSD/lending_fUSD_20260518
["ID","MTS","AMOUNT","RATE_DAILY","PERIOD"]
[422570905,1779106243000,-208.00132356,0.000249,4]
[422570909,1779106243000,-517.55238319,0.00024912,2]
[422570971,1779106243000,-350.0,0.000257,2]
[422570973,1779106243000,-255.0,0.000257,7]
[422571015,1779106243000,-247.15,0.00025802,30]
[422571017,1779106243000,-1079.99,0.00025802,2]
[422571018,1779106243000,-395.9,0.00025802,2]
[422571019,1779106243000,-312.86,0.00025802,30]
[422571020,1779106243000,-1156.65,0.00025802,2]
[422571022,1779106243000,-396.73,0.00025802,2]
[422571032,1779106243000,-152.0,0.00025858,4]
[422571021,1779106243000,-235.0,0.00025802,2]
[422571023,1779106243000,-190.47,0.00025803,2]
[422571024,1779106243000,-247.15,0.0002583,2]
[422571025,1779106243000,-234.46,0.0002583,2]
[422571030,1779106243000,-235.0,0.0002583,2]
[422571016,1779106243000,-234.46,0.00025802,2]
[422571031,1779106243000,-396.73,0.0002583,2]
[422571028,1779106243000,-312.86,0.0002583,2]
[422571029,1779106243000,-1156.65,0.0002583,2]
[422571033,1779106243000,-247.15,0.00025859,7]
[422571036,1779106243000,-395.9,0.00025859,7]
[422571037,1779106243000,-312.86,0.00025859,7]
[422571034,1779106243000,-234.46,0.00025859,7]
[422571038,1779106243000,-1156.65,0.00025859,7]
[422571039,1779106243000,-235.0,0.00025859,7]
[422571035,1779106243000,-1079.99,0.00025859,7]
[422571040,1779106243000,-396.73,0.00025859,7]
[422571041,1779106243000,-502.0,0.00025884,3]
[422570958,1779106243000,-600.0,0.00025548,7]
[422571027,1779106243000,-395.9,0.0002583,2]
[422571014,1779106243000,-577.27609918,0.000258,2]
[422571026,1779106243000,-1079.99,0.0002583,2]
[422571012,1779106243000,-172.94,0.00025793,2]
[422571010,1779106243000,-999.76,0.00025786,2]
[422570964,1779106243000,-1000.0,0.00025631,2]
[422570960,1779106243000,-1300.0,0.00025548,7]
[422570966,1779106243000,-3256.0,0.00025641,2]
[422570975,1779106243000,-247.15,0.00025745,2]
[422570977,1779106243000,-234.46,0.00025745,2]
[422570968,1779106243000,-459.67662177,0.00025651,2]
[422570978,1779106243000,-1079.99,0.00025745,2]
[422570979,1779106243000,-395.9,0.00025745,2]
[422570981,1779106243000,-1156.65,0.00025745,2]
[422570980,1779106243000,-312.86,0.00025745,2]
[422570991,1779106243000,-5000.0,0.00025752,2]
[422570983,1779106243000,-235.0,0.00025745,2]
[422570995,1779106243000,-5000.0,0.00025752,2]
[422570962,1779106243000,-178.73999999,0.00025571,2]
[422571009,1779106243000,-1053.52,0.00025786,2]
[422570993,1779106243000,-5000.0,0.00025752,2]
[422571006,1779106243000,-1156.65,0.00025773,7]
[422571007,1779106243000,-235.0,0.00025773,7]
[422571008,1779106243000,-396.73,0.00025773,7]
[422571003,1779106243000,-395.9,0.00025773,7]
[422571005,1779106243000,-312.86,0.00025773,7]
[422570989,1779106243000,-5000.0,0.00025752,2]
[422570985,1779106243000,-396.73,0.00025745,2]
[422570987,1779106243000,-5000.0,0.00025752,2]
[422571001,1779106243000,-1079.99,0.00025773,7]
[422570997,1779106243000,-247.15,0.00025773,7]
[422570999,1779106243000,-234.46,0.00025773,7]
[422571076,1779106244000,-350.0,0.00025993,5]
[422571093,1779106244000,-395.9,0.0002603,7]
[422571092,1779106244000,-1079.99,0.0002603,7]
[422571082,1779106244000,-247.15,0.00026001,2]
[422571074,1779106244000,-396.73,0.00025973,2]
[422571072,1779106244000,-1156.65,0.00025973,2]
[422571075,1779106244000,-608.8270149,0.0002599,2]
[422571071,1779106244000,-312.86,0.00025973,30]
[422571073,1779106244000,-235.0,0.00025973,2]
[422571077,1779106244000,-4582.9016728,0.00026,2]
[422571081,1779106244000,-172.0,0.00026,7]
[422571078,1779106244000,-219.34301534,0.00026,2]
[422571086,1779106244000,-312.86,0.00026001,2]
[422571088,1779106244000,-235.0,0.00026001,2]
[422571085,1779106244000,-395.9,0.00026001,2]
[422571083,1779106244000,-234.46,0.00026001,2]
[422571089,1779106244000,-396.73,0.00026001,2]
[422571087,1779106244000,-1156.65,0.00026001,2]
[422571090,1779106244000,-247.15,0.0002603,7]
[422571091,1779106244000,-234.46,0.0002603,7]
[422571095,1779106244000,-1156.65,0.0002603,7]
[422571105,1779106244000,-396.73,0.00026058,7]
[422571107,1779106244000,-247.15,0.00026087,2]
[422571094,1779106244000,-312.86,0.0002603,7]
[422571106,1779106244000,-2000.0,0.00026066,2]
[422571099,1779106244000,-234.46,0.00026058,7]
[422571084,1779106244000,-1079.99,0.00026001,2]
[422571069,1779106244000,-1079.99,0.00025973,2]
[422571045,1779106244000,-395.9,0.00025887,7]
[422571070,1779106244000,-395.9,0.00025973,2]
[422571044,1779106244000,-1079.99,0.00025887,7]
[422571042,1779106244000,-247.15,0.00025887,30]
[422571043,1779106244000,-234.46,0.00025887,7]
[422571049,1779106244000,-396.73,0.00025887,7]
[422571053,1779106244000,-1079.99,0.00025916,2]
[422571050,1779106244000,-32030.54901172,0.0002589,5]
[422571054,1779106244000,-395.9,0.00025916,2]
[422571052,1779106244000,-234.46,0.00025916,2]
[422571051,1779106244000,-247.15,0.00025916,2]
[422571057,1779106244000,-235.0,0.00025916,2]
[422571046,1779106244000,-312.86,0.00025887,30]
[422571047,1779106244000,-1156.65,0.00025887,7]
[422571056,1779106244000,-1156.65,0.00025916,2]
[422571096,1779106244000,-235.0,0.0002603,7]
[422571058,1779106244000,-396.73,0.00025916,2]
[422571055,1779106244000,-312.86,0.00025916,2]
[422571059,1779106244000,-247.15,0.00025944,7]
[422571061,1779106244000,-1079.99,0.00025944,7]
[422571064,1779106244000,-1156.65,0.00025944,7]
[422571060,1779106244000,-234.46,0.00025944,7]
[422571065,1779106244000,-235.0,0.00025944,7]
[422571063,1779106244000,-312.86,0.00025944,7]
[422571062,1779106244000,-395.9,0.00025944,7]
[422571067,1779106244000,-247.15,0.00025973,30]
[422571068,1779106244000,-234.46,0.00025973,2]
[422571066,1779106244000,-396.73,0.00025944,7]
[422571079,1779106244000,-400.29843382,0.00026,20]
[422571080,1779106244000,-1000.0,0.00026,2]
[422571101,1779106244000,-395.9,0.00026058,7]
[422571048,1779106244000,-235.0,0.00025887,7]
[422571097,1779106244000,-396.73,0.0002603,7]
[422571136,1779106244000,-247.15,0.00026172,2]
[422571134,1779106244000,-396.73,0.00026144,2]
[422571139,1779106244000,-395.9,0.00026172,2]
[422571138,1779106244000,-1079.99,0.00026172,2]
[422571140,1779106244000,-312.86,0.00026172,2]
[422571142,1779106244000,-235.0,0.00026172,2]
[422571141,1779106244000,-1156.65,0.00026172,2]
[422571144,1779106244000,-1000.0,0.0002618,2]
[422571154,1779106244000,-234.46,0.00026229,7]
[422571143,1779106244000,-396.73,0.00026172,2]
[422571155,1779106244000,-1079.99,0.00026229,7]
[422571146,1779106244000,-234.46,0.00026201,7]
[422571147,1779106244000,-1079.99,0.00026201,7]
[422571150,1779106244000,-1156.65,0.00026201,7]
[422571152,1779106244000,-396.73,0.00026201,7]
[422571145,1779106244000,-247.15,0.00026201,7]
[422571149,1779106244000,-312.86,0.00026201,7]
[422571148,1779106244000,-395.9,0.00026201,7]
[422571153,1779106244000,-247.15,0.00026229,30]
[422571151,1779106244000,-235.0,0.00026201,7]
[422571157,1779106244000,-312.86,0.00026229,30]
[422571158,1779106244000,-1156.65,0.00026229,7]
[422571156,1779106244000,-395.9,0.00026229,7]
[422571159,1779106244000,-235.0,0.00026229,7]
[422571162,1779106244000,-234.46,0.00026258,2]
[422571161,1779106244000,-247.15,0.00026258,2]
[422571160,1779106244000,-396.73,0.00026229,7]
[422571135,1779106244000,-198.00075388,0.0002617,30]
[422571137,1779106244000,-234.46,0.00026172,2]
[422571104,1779106244000,-235.0,0.00026058,7]
[422571121,1779106244000,-1079.99,0.00026115,7]
[422571133,1779106244000,-235.0,0.00026144,2]
[422571102,1779106244000,-312.86,0.00026058,30]
[422571098,1779106244000,-247.15,0.00026058,30]
[422571103,1779106244000,-1156.65,0.00026058,7]
[422571100,1779106244000,-1079.99,0.00026058,7]
[422571108,1779106244000,-234.46,0.00026087,2]
[422571111,1779106244000,-312.86,0.00026087,2]
[422571112,1779106244000,-1156.65,0.00026087,2]
[422571110,1779106244000,-395.9,0.00026087,2]
[422571115,1779106244000,-203.75847026,0.000261,20]
[422571116,1779106244000,-200.0,0.000261,7]
[422571113,1779106244000,-235.0,0.00026087,2]
[422571114,1779106244000,-396.73,0.00026087,2]
[422571119,1779106244000,-247.15,0.00026115,7]
[422571109,1779106244000,-1079.99,0.00026087,2]
[422571117,1779106244000,-200.0,0.000261,20]
[422571118,1779106244000,-201.45250632,0.000261,20]
[422571128,1779106244000,-234.46,0.00026144,2]
[422571131,1779106244000,-312.86,0.00026144,30]
[422571127,1779106244000,-247.15,0.00026144,30]
[422571126,1779106244000,-396.73,0.00026115,7]
[422571123,1779106244000,-312.86,0.00026115,7]
[422571129,1779106244000,-1079.99,0.00026144,2]
[422571122,1779106244000,-395.9,0.00026115,7]
[422571130,1779106244000,-395.9,0.00026144,2]
[422571125,1779106244000,-235.0,0.00026115,7]
[422571132,1779106244000,-1156.65,0.00026144,2]
[422571120,1779106244000,-234.46,0.00026115,7]
[422571124,1779106244000,-1156.65,0.00026115,7]
[422571209,1779106245000,-2897.0,0.00026748,2]
[422571204,1779106245000,-600.0,0.00026644,7]
[422571201,1779106245000,-1046.32047232,0.00026558,5]
[422571202,1779106245000,-150.0,0.00026558,2]
[422571200,1779106245000,-1077.93045164,0.00026558,5]
[422571205,1779106245000,-1300.0,0.00026644,7]
[422571197,1779106245000,-155.0,0.000265,2]
[422571199,1779106245000,-1034.83309762,0.00026558,5]
[422571195,1779106245000,-502.0,0.00026479,4]
[422571207,1779106245000,-173.52799035,0.00026664,15]
[422571206,1779106245000,-165.0,0.00026644,7]
[422571221,1779106245000,-2000.0,0.00027,2]
[422571203,1779106245000,-1000.0,0.00026636,2]
[422571219,1779106245000,-530.0,0.00027,2]
[422571226,1779106245000,-150.0,0.00027,2]
[422571212,1779106245000,-1000.0,0.00026863,2]
[422571220,1779106245000,-361.84941654,0.00027,2]
[422571211,1779106245000,-155.0,0.000268,2]
[422571208,1779106245000,-807.13,0.000267,7]
[422571215,1779106245000,-162.0,0.0002698,5]
[422571214,1779106245000,-1000.0,0.00026971,2]
[422571217,1779106245000,-250.0,0.00027,2]
[422571216,1779106245000,-162.0,0.0002698,5]
[422571218,1779106245000,-1049.1183092,0.00027,2]
[422571213,1779106245000,-1000.0,0.00026896,2]
[422571224,1779106245000,-150.0,0.00027,2]
[422571223,1779106245000,-188.96646728,0.00027,2]
[422571222,1779106245000,-317.0,0.00027,7]
[422571196,1779106245000,-150.0,0.00026484,2]
[422571210,1779106245000,-1000.0,0.00026783,2]
[422571192,1779106245000,-27858.5650879,0.000264,2]
[422571180,1779106245000,-724.97,0.00026335,2]
[422571193,1779106245000,-1000.0,0.00026476,2]
[422571168,1779106245000,-396.73,0.00026258,2]
[422571169,1779106245000,-497.75847978,0.00026262,2]
[422571167,1779106245000,-235.0,0.00026258,2]
[422571163,1779106245000,-1079.99,0.00026258,2]
[422571164,1779106245000,-395.9,0.00026258,2]
[422571165,1779106245000,-312.86,0.00026258,2]
[422571166,1779106245000,-1156.65,0.00026258,2]
[422571170,1779106245000,-396.52,0.00026287,7]
[422571174,1779106245000,-396.07,0.00026287,7]
[422571173,1779106245000,-1080.15,0.00026287,7]
[422571172,1779106245000,-234.48,0.00026287,7]
[422571171,1779106245000,-247.2,0.00026287,7]
[422571175,1779106245000,-313.01,0.00026287,7]
[422571176,1779106245000,-1156.7,0.00026287,7]
[422571179,1779106245000,-157.1,0.00026296,2]
[422571181,1779106245000,-43793.7465311,0.00026336,2]
[422571231,1779106245000,-502.0,0.00027073,5]
[422571177,1779106245000,-235.05,0.00026287,7]
[422571178,1779106245000,-396.75,0.00026287,7]
[422571182,1779106245000,-1000.0,0.00026359,2]
[422571194,1779106245000,-1000.0,0.00026477,2]
[422571184,1779106245000,-5037.79875775,0.00026377,2]
[422571186,1779106245000,-300.23708894,0.00026397,2]
[422571185,1779106245000,-321.31936054,0.00026397,2]
[422571183,1779106245000,-1000.0,0.00026366,2]
[422571187,1779106245000,-275.52253222,0.00026397,2]
[422571189,1779106245000,-345.9286858,0.00026397,2]
[422571188,1779106245000,-280.728744,0.00026397,2]
[422571190,1779106245000,-275.42651722,0.00026397,2]
[422571191,1779106245000,-291.1011783,0.00026397,2]
[422571230,1779106245000,-2574.681521,0.0002701,2]
[422571198,1779106245000,-1000.0,0.0002652,2]
[422571237,1779106245000,-892.35,0.000271,2]
[422571259,1779106245000,-500.0,0.00027397,2]
[422571273,1779106245000,-151.0,0.00027397,2]
[422571267,1779106245000,-151.0,0.00027397,2]
[422571274,1779106245000,-151.0,0.00027397,2]
[422571277,1779106245000,-151.0,0.00027397,2]
[422571278,1779106245000,-43141.42,0.00027397,10]
[422571266,1779106245000,-151.0,0.00027397,2]
[422571275,1779106245000,-151.0,0.00027397,2]
[422571268,1779106245000,-151.0,0.00027397,2]
[422571269,1779106245000,-151.0,0.00027397,2]
[422571272,1779106245000,-151.0,0.00027397,2]
[422571271,1779106245000,-151.0,0.00027397,2]
[422571270,1779106245000,-151.0,0.00027397,2]
[422571280,1779106245000,-29959.32,0.00027397,10]
[422571261,1779106245000,-150.0,0.00027397,2]
[422571281,1779106245000,-300.76,0.000274,7]
[422571285,1779106245000,-693.55,0.000274,2]
[422571286,1779106245000,-200.0,0.000274,2]
[422571283,1779106245000,-500.0,0.000274,2]
[422571287,1779106245000,-500.0,0.000274,2]
[422571288,1779106245000,-500.0,0.000274,2]
[422571292,1779106245000,-500.0,0.000274,2]
[422571289,1779106245000,-500.0,0.000274,2]
[422571290,1779106245000,-500.0,0.000274,2]
[422571291,1779106245000,-500.0,0.000274,2]
[422571294,1779106245000,-158.3708612,0.00027451,2]
[422571295,1779106245000,-2529.4103661,0.00027451,2]
[422571296,1779106245000,-204.1551231,0.000275,2]
[422571293,1779106245000,-4120.0,0.00027451,2]
[422571235,1779106245000,-198.24523163,0.00027099,2]
[422571282,1779106245000,-414.7,0.000274,7]
[422571258,1779106245000,-150.0,0.00027397,2]
[422571279,1779106245000,-35951.19,0.00027397,10]
[422571257,1779106245000,-500.0,0.00027397,2]
[422571228,1779106245000,-1000.0,0.00027008,2]
[422571260,1779106245000,-267.02340513,0.00027397,2]
[422571233,1779106245000,-177.0,0.00027096,30]
[422571236,1779106245000,-151.0,0.000271,2]
[422571234,1779106245000,-166.0,0.00027096,30]
[422571232,1779106245000,-165.0,0.00027096,30]
[422571225,1779106245000,-150.4818895,0.00027,2]
[422571239,1779106245000,-892.35,0.000271,2]
[422571249,1779106245000,-4169.74330522,0.0002739,2]
[422571250,1779106245000,-8237.4738307,0.0002739,2]
[422571251,1779106245000,-724.97,0.00027396,2]
[422571241,1779106245000,-892.35,0.000271,2]
[422571248,1779106245000,-5000.0,0.00027335,2]
[422571245,1779106245000,-892.35,0.00027101,2]
[422571242,1779106245000,-892.35,0.000271,2]
[422571240,1779106245000,-892.35,0.000271,2]
[422571238,1779106245000,-892.32,0.000271,2]
[422571256,1779106245000,-500.0,0.00027397,2]
[422571243,1779106245000,-261.27,0.000271,7]
[422571297,1779106245000,-150.47,0.0002756,120]
[422571254,1779106245000,-500.0,0.00027397,2]
[422571252,1779106245000,-178.76000001,0.00027397,2]
[422571265,1779106245000,-151.0,0.00027397,2]
[422571264,1779106245000,-300.0,0.00027397,2]
[422571255,1779106245000,-500.0,0.00027397,2]
[422571262,1779106245000,-1500.0,0.00027397,2]
[422571253,1779106245000,-204.04372196,0.00027397,7]
[422571244,1779106245000,-261.27,0.000271,7]
[422571246,1779106245000,-150.0,0.00027123,20]
[422571247,1779106245000,-173.0,0.00027185,7]
[422571263,1779106245000,-526.72,0.00027397,2]
[422571318,1779106246000,-724.97,0.00027999,2]
[422571327,1779106246000,-724.97,0.00027999,2]
[422571315,1779106246000,-724.97,0.00027999,2]
[422571319,1779106246000,-724.97,0.00027999,2]
[422571317,1779106246000,-724.97,0.00027999,2]
[422571316,1779106246000,-724.97,0.00027999,2]
[422571322,1779106246000,-724.97,0.00027999,2]
[422571320,1779106246000,-724.97,0.00027999,2]
[422571323,1779106246000,-724.97,0.00027999,2]
[422571329,1779106246000,-725.10759521,0.00027999,2]
[422571332,1779106246000,-643.0,0.00028,2]
[422571311,1779106246000,-219.27,0.00027937,2]
[422571321,1779106246000,-724.97,0.00027999,2]
[422571313,1779106246000,-3219.28908123,0.00027999,2]
[422571304,1779106246000,-600.0,0.0002774,60]
[422571312,1779106246000,-151.0,0.00027997,7]
[422571310,1779106246000,-5100.0,0.000279,10]
[422571309,1779106246000,-414.7,0.000279,7]
[422571306,1779106246000,-150.0,0.00027886,2]
[422571308,1779106246000,-300.76,0.000279,7]
[422571307,1779106246000,-1102.65356766,0.00027899,15]
[422571305,1779106246000,-500.0,0.000278,7]
[422571298,1779106246000,-502.0,0.00027668,5]
[422571301,1779106246000,-161.0,0.0002774,60]
[422571303,1779106246000,-1300.0,0.0002774,60]
[422571300,1779106246000,-787.11356932,0.0002769,2]
[422571299,1779106246000,-317.0,0.00027671,14]
[422571302,1779106246000,-211.0,0.0002774,60]
[422571325,1779106246000,-724.97,0.00027999,2]
[422571314,1779106246000,-1102.65356766,0.00027999,15]
[422571324,1779106246000,-724.97,0.00027999,2]
[422571343,1779106246000,-44076.1096386,0.00028,120]
[422571330,1779106246000,-51595.40694348,0.00028,2]
[422571358,1779106246000,-172.10895707,0.00026101,2]
[422571360,1779106246000,-726.65367492,0.00028,120]
[422571326,1779106246000,-724.97,0.00027999,2]
[422571357,1779106246000,-261.25020752,0.00024821,2]
[422571356,1779106246000,-300.0,0.00028,120]
[422571355,1779106246000,-384.01,0.00028,120]
[422571354,1779106246000,-1634.42427133,0.00028,120]
[422571352,1779106246000,-392.56681498,0.00028,120]
[422571353,1779106246000,-1463.02402454,0.00028,120]
[422571349,1779106246000,-152.0,0.00021142,7]
[422571351,1779106246000,-3459.07859187,0.00028,120]
[422571345,1779106246000,-253.24101467,0.00028,120]
[422571348,1779106246000,-19309.99994,0.00028,120]
[422571347,1779106246000,-1492.09746823,0.00028,120]
[422571359,1779106246000,-6731.66083541,0.00028,120]
[422571350,1779106246000,-118.00005,0.00028,120]
[422571328,1779106246000,-724.97,0.00027999,2]
[422571331,1779106246000,-160.0,0.00028,2]
[422571333,1779106246000,-17152.12366043,0.00028,120]
[422571346,1779106246000,-664.18870163,0.00028,120]
[422571335,1779106246000,-166.66,0.00013699,2]
[422571337,1779106246000,-166.66,0.00013973,2]
[422571334,1779106246000,-595.0,0.00028,120]
[422571341,1779106246000,-152.0,0.00021142,7]
[422571339,1779106246000,-166.66,0.00014247,2]
[422571338,1779106246000,-166.66,0.0001411,2]
[422571340,1779106246000,-166.66,0.00014384,2]
[422571344,1779106246000,-3444.52416997,0.00028,120]
[422571342,1779106246000,-57212.13631059,0.00028,120]
[422571336,1779106246000,-166.66,0.00013836,2]
[422571361,1779106247000,-402.56,0.00028,120]
[422571362,1779106247000,-4734.73491026,0.00028,120]
[422571363,1779106247000,-787.94,0.00028,120]
[422571367,1779106327000,430.39,0.00026029,120]
[422571370,1779106646000,-167.00671164,0.00013599,2]
[422571371,1779106646000,-1200.0,0.00013698,2]
[422571372,1779106646000,-150.0,0.00013698,2]
[422571374,1779106646000,-283.43605315,0.00013699,2]
[422571373,1779106646000,-500.0,0.00013699,2]
[422571388,1779106647000,-790.6551752,0.00013699,2]
[422571386,1779106647000,-790.6551752,0.00013699,2]
[422571387,1779106647000,-471.30675596,0.00013699,2]
[422571384,1779106647000,-456.57545542,0.00013699,2]
[422571382,1779106647000,-500.0,0.00013699,2]
[422571385,1779106647000,-389.77028103,0.00013699,2]
[422571383,1779106647000,-282.89258298,0.00013699,2]
[422571380,1779106647000,-500.0,0.00013699,2]
[422571378,1779106647000,-182.86040256,0.00013699,2]
[422571379,1779106647000,-500.0,0.00013699,2]
[422571376,1779106647000,-238.44941491,0.00013699,2]
[422571375,1779106647000,-500.0,0.00013699,2]
[422571389,1779106647000,-292.94099887,0.00013699,2]
[422571381,1779106647000,-500.0,0.00013699,2]
[422571390,1779106647000,-500.0,0.00013699,2]
[422571377,1779106647000,-500.0,0.00013699,2]
[422571392,1779106647000,-790.6551752,0.00013699,2]
[422571391,1779106647000,-790.6551752,0.00013699,2]
[422571406,1779106647000,-790.6551752,0.00013699,2]
[422571404,1779106647000,-790.6551752,0.00013699,2]
[422571405,1779106647000,-790.6551752,0.00013699,2]
[422571402,1779106647000,-790.6551752,0.00013699,2]
[422571401,1779106647000,-790.6551752,0.00013699,2]
[422571399,1779106647000,-790.6551752,0.00013699,2]
[422571403,1779106647000,-790.6551752,0.00013699,2]
[422571397,1779106647000,-790.6551752,0.00013699,2]
[422571398,1779106647000,-790.6551752,0.00013699,2]
[422571396,1779106647000,-790.6551752,0.00013699,2]
[422571395,1779106647000,-790.6551752,0.00013699,2]
[422571394,1779106647000,-790.6551752,0.00013699,2]
[422571393,1779106647000,-790.6551752,0.00013699,2]
[422571400,1779106647000,-790.6551752,0.00013699,2]
[422571414,1779106648000,-790.6551752,0.00013699,2]
[422571422,1779106648000,-790.6551752,0.00013699,2]
[422571418,1779106648000,-790.6551752,0.00013699,2]
[422571420,1779106648000,-790.6551752,0.00013699,2]
[422571419,1779106648000,-790.6551752,0.00013699,2]
[422571417,1779106648000,-790.6551752,0.00013699,2]
[422571415,1779106648000,-790.6551752,0.00013699,2]
[422571407,1779106648000,-790.6551752,0.00013699,2]
[422571412,1779106648000,-790.6551752,0.00013699,2]
[422571413,1779106648000,-790.6551752,0.00013699,2]
[422571410,1779106648000,-790.6551752,0.00013699,2]
[422571411,1779106648000,-790.6551752,0.00013699,2]
[422571408,1779106648000,-790.6551752,0.00013699,2]
[422571409,1779106648000,-790.6551752,0.00013699,2]
[422571424,1779106648000,-790.6551752,0.00013699,2]
[422571416,1779106648000,-790.6551752,0.00013699,2]
[422571421,1779106648000,-790.6551752,0.00013699,2]
[422571423,1779106648000,-790.6551752,0.00013699,2]
[422571425,1779106648000,-790.6551752,0.00013699,2]
[422571426,1779106648000,-790.6551752,0.00013699,2]
[422571442,1779106648000,-786.49383218,0.00013699,2]
[422571441,1779106648000,-786.49383218,0.00013699,2]
[422571440,1779106648000,-786.49383218,0.00013699,2]
[422571438,1779106648000,-786.49383218,0.00013699,2]
[422571439,1779106648000,-786.49383218,0.00013699,2]
[422571436,1779106648000,-790.6551752,0.00013699,2]
[422571434,1779106648000,-790.6551752,0.00013699,2]
[422571437,1779106648000,-786.49383218,0.00013699,2]
[422571433,1779106648000,-790.6551752,0.00013699,2]
[422571432,1779106648000,-790.6551752,0.00013699,2]
[422571431,1779106648000,-790.6551752,0.00013699,2]
[422571430,1779106648000,-790.6551752,0.00013699,2]
[422571429,1779106648000,-790.6551752,0.00013699,2]
[422571428,1779106648000,-790.6551752,0.00013699,2]
[422571427,1779106648000,-790.6551752,0.00013699,2]
[422571435,1779106648000,-790.6551752,0.00013699,2]
[422571454,1779106649000,-786.49383218,0.00013699,2]
[422571461,1779106649000,-786.49383218,0.00013699,2]
[422571459,1779106649000,-786.49383218,0.00013699,2]
[422571457,1779106649000,-786.49383218,0.00013699,2]
[422571458,1779106649000,-786.49383218,0.00013699,2]
[422571456,1779106649000,-786.49383218,0.00013699,2]
[422571455,1779106649000,-786.49383218,0.00013699,2]
[422571453,1779106649000,-786.49383218,0.00013699,2]
[422571443,1779106649000,-786.49383218,0.00013699,2]
[422571450,1779106649000,-786.49383218,0.00013699,2]
[422571451,1779106649000,-786.49383218,0.00013699,2]
[422571448,1779106649000,-786.49383218,0.00013699,2]
[422571446,1779106649000,-786.49383218,0.00013699,2]
[422571447,1779106649000,-786.49383218,0.00013699,2]
[422571445,1779106649000,-786.49383218,0.00013699,2]
[422571444,1779106649000,-786.49383218,0.00013699,2]
[422571462,1779106649000,-786.49383218,0.00013699,2]
[422571449,1779106649000,-786.49383218,0.00013699,2]
[422571463,1779106649000,-786.49383218,0.00013699,2]
[422571452,1779106649000,-786.49383218,0.00013699,2]
[422571464,1779106649000,-786.49383218,0.00013699,2]
[422571483,1779106649000,-653825.4234,0.000137,2]
[422571482,1779106649000,-182.7245359,0.00013699,2]
[422571481,1779106649000,-195.94311146,0.00013699,2]
[422571479,1779106649000,-500.0,0.00013699,2]
[422571477,1779106649000,-500.0,0.00013699,2]
[422571478,1779106649000,-1231.30525337,0.00013699,2]
[422571480,1779106649000,-500.0,0.00013699,2]
[422571474,1779106649000,-786.4938322,0.00013699,2]
[422571473,1779106649000,-786.4938322,0.00013699,2]
[422571476,1779106649000,-572.32579976,0.00013699,2]
[422571475,1779106649000,-236.47856403,0.00013699,2]
[422571465,1779106649000,-786.49383218,0.00013699,2]
[422571460,1779106649000,-786.49383218,0.00013699,2]
[422571467,1779106649000,-786.49383218,0.00013699,2]
[422571468,1779106649000,-786.4938322,0.00013699,2]
[422571466,1779106649000,-786.49383218,0.00013699,2]
[422571470,1779106649000,-786.4938322,0.00013699,2]
[422571471,1779106649000,-786.4938322,0.00013699,2]
[422571472,1779106649000,-786.4938322,0.00013699,2]
[422571469,1779106649000,-786.4938322,0.00013699,2]
[422571490,1779106650000,-500.0,0.00013899,2]
[422571484,1779106650000,-9424.68230846,0.00013799,2]
[422571485,1779106650000,-500.0,0.00013899,2]
[422571487,1779106650000,-500.0,0.00013899,2]
[422571489,1779106650000,-500.0,0.00013899,2]